{"text_format":"1","workbook":"xlsx","n_sheets":14,"sheets":["AER only","Instructions","Contents","Business & other details","3.1 Revenue","3.2 Operating expenditure","3.2.3 Provisions","3.3 Assets (RAB)","3.4 Operational data","3.5 Physical assets","3.6 Quality of services","3.7 Operating environment","Unlocked worksheet","NSP Amendments"],"not_rendered":{"charts":0,"images":5,"macros":1,"external_links":2,"defined_names":155,"comments":0,"pivot_tables":0},"unopened":[],"bounds":{"document_bytes":16777216,"sheet_cells":100000,"rows_first":2000,"rows_last":500,"rows_between":2000,"halvings":0,"cell_chars":16384,"cell_head_chars":4096},"cells_cut":0,"cells_raw":0,"read":"whole","date_system":"1900"}

{"sheet":"AER only","index":0,"n_rows":70,"n_cols":32,"rows_kept":70,"cut":false,"hidden":true,"merged":[[0,1,0,11]]}
[null,"Data in these columns used for data validation and database purposes."]
[null,"Date last modified:"]
[null,"14 April 2015","merged cell C46/47"]
[null,"17 April 2015","adjusted dms_RYE to automate based on dms_Model (NB: EB & CA refer to CRCP_y5)"]
[null,"14 May 2015","adapted this cover for use in CA & EB RINs"]
[null,"October 2015","added full Trading Name for worksheet headings"]
[null,null,"added new formulas for distinguishing RYE for RFM vs PTRM and Reset (set by ref to CRCP or FRCP) and EB & CA (set by ref to CRY)"]
[]
[]
[]
[]
[null,"dms_TradingName_List","dms_TradingNameFull_List","dms_ABN_List","dms_JurisdictionList","dms_Sector_List","dms_Segment_List","dms_FormControl_List","dms_RPT_List","dms_RPTMonth_List","dms_CRCPlength_List","dms_FRCPlength_List","dms_663_List","dms_DeterminationRef_List",null,null,null,"dms_Addr1_List","dms_Addr2_List","dms_Suburb_List","dms_State_List","dms_PostCode_List","dms_PAddr1_List","dms_PAddr2_List","dms_PSuburb_List","dms_PState_List","dms_PPostCode_List","dms_ContactName1_List","dms_ContactPh1_List","dms_ContactEmail_List"]
[null,"ActewAGL Distribution","ActewAGL Distribution",76670568688,"ACT","Electricity","Distribution","Revenue cap","Calendar","December",5,6,5,"2014-19 Distribution Determination",null,null,null,"40 Bunda Street",null,"CANBERRA","ACT","2601","GPO BOX 366",null,"CANBERRA","ACT",2601,"Robert Walker","02 6248 3847","robert.walker@actewagle.com.au"]
[null,"ActewAGL Distribution (Tx Assets)","ActewAGL Distribution (Tx Assets)",76670568688,"ACT","Electricity","Distribution","Revenue cap","Calendar","December",5,5,5,"distribution determination",null,null,null,null,null,null,"ACT"]
[null,"AGN","AGN",78551685,"SA","Gas","Distribution","Revenue cap","Financial","June",5,5,5,"distribution determination",null,null,null,null,null,null,"SA"]
[null,"Ausgrid","Ausgrid",67505337385,"NSW","Electricity","Distribution","Revenue cap","Financial","June",5,5,5,"2014-19 Distribution Determination",null,null,null,"570 George St",null,"SYDNEY","NSW",2000,null,null,null,null,null,"John Thomson","(02) 9269 2312","john.thomson@ausgrid.com.au"]
[null,"Ausgrid (Tx Assets)","Ausgrid (Tx Assets)",67505337385,"NSW","Electricity","Distribution","Revenue cap","Financial","June",5,5,5,"distribution determination",null,null,null,null,null,null,"NSW"]
[null,"AusNet (D)","AusNet Services (D)",91064651118,"Vic","Electricity","Distribution","Revenue cap","Calendar","December",5,5,2,"2016-20 Distribution Determination",null,null,null,"Level 32","2 Southbank Boulevard","SOUTHBANK","Vic","3006","Locked Bag 14051",null,"MELBOURNE CITY MAIL CENTRE","VIC",null,"Tom Hallam","03 9695 6617","Thomas.hallam@SP-Ausnet.com.au"]
[null,"AusNet (T)","AusNet (T)",48116124362,"Vic","Electricity","Transmission","Revenue cap","Financial","March",5,5,2,"transmission determination",null,null,null,"Level 32","2 Southbank Boulevard","SOUTHBANK","Vic","3006",null,null,null,null,null,"Tom Hallam","03 9695 6617","Thomas.hallam@SP-Ausnet.com.au"]
[null,"Australian Distribution Co.","Australian Distribution Co.",11222333444,"-","Electricity","Distribution","Revenue cap","Financial","June",5,5,2,"distribution determination",null,null,null,null,null,null,"-"]
[null,"Australian Transmission Co.","Australian Transmission Co.",11222333444,"-","Electricity","Transmission","Revenue cap","Calendar","December",5,5,5,"transmission determination",null,null,null,null,null,null,"-"]
[null,"CitiPower","CitiPower",76064651056,"Vic","Electricity","Distribution","Revenue cap","Calendar","December",5,5,2,"2016-20 Distribution Determination",null,null,null,"40 Market Street",null,"MELBOURNE","Vic","3000","Locked Bag 14090",null,"MELBOURNE","VIC",null,"Hannah Williams","03 9683 4088","hwilliams@powercor.com.au"]
[null,"Directlink","Directlink",16779340889,"Qld","Electricity","Transmission","Revenue cap","Financial","June",10,5,5,"transmission determination",null,null,null,null,null,null,"NSW"]
[null,"ElectraNet","ElectraNet",41094482416,"SA","Electricity","Transmission","Revenue cap","Financial","June",5,5,5,"transmission determination",null,null,null,"52-55 East Terrace","Rymill Park","ADELAIDE","SA","5000","PO Box 7096","Hutt Street Post Office","ADELAIDE","SA",null,"Bill Jackson","08 8404 7969","jackson.bill@electranet.com.au"]
[null,"Endeavour Energy","Endeavour Energy",59253130878,"NSW","Electricity","Distribution","Revenue cap","Financial","June",5,5,5,"2014-19 Distribution Determination",null,null,null,"51 Huntingwood Drive",null,"HUNTINGWOOD","NSW","2148","PO Box 811",null,"SEVEN HILLS","NSW",null,"Jon Hocking","02 9853 4386 / 0407 348 156","Jon.Hocking@Endeavourenergy.com.au"]
[null,"Energex","Energex",40078849055,"Qld","Electricity","Distribution","Revenue cap","Financial","June",5,5,5,"2015-20 Distribution Determination",null,null,null,"26 Reddacliff Street",null,"NEWSTEAD","Qld","4006","26 Reddacliff Street",null,"NEWSTEAD","QLD","4006","Nicola Roscoe","07 3664 5891","nicolaroscoe@energex.com.au"]
[null,"Ergon Energy","Ergon Energy",50087646062,"Qld","Electricity","Distribution","Revenue cap","Financial","June",5,5,5,"2015-20 Distribution Determination",null,null,null,"22 Walker Street",null,"TOWNSVILLE","Qld","4810",null,null,null,null,null,"Jenny Doyle, Group Manager Regulatory Affairs","(07) 3851 6416","jenny.doyle@ergon.com.au"]
[null,"Essential Energy","Essential Energy",37428185226,"NSW","Electricity","Distribution","Revenue cap","Financial","June",5,5,5,"2014-19 Distribution Determination",null,null,null,"8 Buller Street",null,"PORT MACQUARIE","NSW","2444","PO Box 5730",null,"Port MacQuarie","NSW",null,"Catherine Waddell","02 6338 3553","Catherine.waddell@essentialenergy.com.au"]
[null,"Jemena Electricity","Jemena Electricity",82064651083,"Vic","Electricity","Distribution","Revenue cap","Calendar","December",5,5,2,"2016-20 Distribution Determination",null,null,null,"321 Ferntree Gully Road",null,"MT WAVERLEY","Vic","3149","321 Ferntree Gully Road",null,"MT WAVERLEY","VIC","3149","Anton Murashev","03 8544 9036","anton.murashev@jemena.com.au"]
[null,"Murraylink","Murraylink",79181207909,"SA","Electricity","Transmission","Revenue cap","Financial","June",5,5,5,"transmission determination",null,null,null,null,null,null,"NSW"]
[null,"Powercor Australia","Powercor Australia",89064651109,"Vic","Electricity","Distribution","Revenue cap","Calendar","December",5,5,2,"2016-20 Distribution Determination",null,null,null,"40 Market Street",null,"MELBOURNE","Vic","3000","Locked bag 14090",null,"MELBOURNE","VIC",3001,"Hannah Williams","03 9683 4088","hwilliams@powercor.com.au"]
[null,"Powerlink","Queensland Electricity Transmission Corporation Limited trading as Powerlink Queensland",82078849233,"Qld","Electricity","Transmission","Revenue cap","Financial","June",5,5,5,"transmission determination",null,null,null,"33 Harold St",null,"VIRGINIA","Qld","4014","PO Box 1193",null,"VIRGINIA","QLD",4014,"Jennifer Harris","07 3860 2667","jharris@powerlink.com.au"]
[null,"SA Power Networks","SA Power Networks",13332330749,"SA","Electricity","Distribution","Revenue cap","Financial","June",5,5,5,"2015-20 Distribution Determination",null,null,null,"1 Anzac Highway",null,"KESWICK","SA","5035","GPO Box 77",null,"ADELAIDE","SA",null,"Damien O'Connor","08 8404 5066","damien.oconnor@sapowernetworks.com.au"]
[null,"TasNetworks (D)","TasNetworks (D)",24167357299,"Tas","Electricity","Distribution","Revenue cap","Financial","June",5,5,5,"distribution determination",null,null,null,"21 Kirksway Place",null,"HOBART","Tas","7000","GPO Box 191",null,"HOBART","Tas",null,"Leigh Mayne","03 6270 3691","rrp2012@auroraenergy.com.au"]
[null,"TasNetworks (T)","TasNetworks (T)",24167357299,"Tas","Electricity","Transmission","Revenue cap","Financial","March",5,5,5,"transmission determination",null,null,null,"1-7 Maria Street",null,"LENAH VALLEY","Tas","7008","PO Box 606",null,"MOONAH","Tas",null,"Heath Dillon","03 6274 3664","heath.dillon@transend.com.au"]
[null,"TransGrid","TransGrid",19622755774,"NSW","Electricity","Transmission","Revenue cap","Financial","June",5,5,5,"transmission determination",null,null,null,"180 Thomas Street",null,"HAYMARKET","NSW","2000","PO Box A1000",null,"SYDNEY SOUTH","NSW",null,"Andrew Kingsmill","02 9284 3149","andrew.kingsmill@transgrid.com.au"]
[null,"United Energy","United Energy",70064651029,"Vic","Electricity","Distribution","Revenue cap","Calendar","December",5,5,2,"2016-20 Distribution Determination",null,null,null,"6 Nexus Court",null,"MULGRAVE","Vic","3170","PO Box 449",null,"MOUNT WAVERLEY","VIC",null,"Mathew Abraham","03 8846 9758","mathew.abraham@ue.com.au"]
[null,"Western Power (D)","Western Power",33333333333,"WA","Electricity","Distribution","?","Financial","June",5,4,"x","distribution determination",null,null,null,null,null,null,"WA"]
[null,"Western Power (T)","Western Power",33333333333,"WA","Electricity","Transmission","?","Financial","June",5,4,"x","transmission determination",null,null,null,null,null,null,"WA"]
[]
[]
[null,"dms_Model_List ","dms_Worksheet_List ",null,"dms_RYE_Formula_Result",null,null,null,null,null,null,null,null,"dms_0203_ProjectType"]
[null,"ARR","ANNUAL REPORTING STATEMENT",null,{"$f":"dms_SingleYear_FinalYear_Result","v":"2015-16"},null,null,null,null,null,null,null,null,"New line on new route - single circuit"]
[null,"CA","CATEGORY ANALYSIS",null,{"$f":"dms_SingleYear_FinalYear_Result","v":"2015-16"},null,null,null,null,null,null,null,null,"New line on new route - dual circuit"]
[null,"CPI","CPI",null,null,null,null,null,null,null,null,null,null,"New line on new route - other"]
[null,"EB","REGULATORY REPORTING STATEMENT",null,{"$f":"dms_SingleYear_FinalYear_Result","v":"2015-16"},null,null,null,null,null,null,null,null,"Line rebuild over existing route - single circuit"]
[null,"PTRM","POST TAX REVENUE MODEL",null,{"$f":"dms_MultiYear_FinalYear_Result","v":{"$error":"#REF!"}},"Errors are OK",null,null,null,null,null,null,null,"Line rebuild over existing route - dual circuit"]
[null,"Reset","REGULATORY REPORTING STATEMENT",null,{"$f":"dms_MultiYear_FinalYear_Result","v":{"$error":"#REF!"}},null,null,null,null,null,null,null,null,"Reconductor - Single circuit"]
[null,"RFM","ROLL FORWARD MODEL",null,{"$f":"dms_CRCP_FinalYear_Result","v":{"$error":"#REF!"}},null,null,null,null,null,null,null,null,"Reconductor - Dual circuit"]
[null,"WACC","WEIGHTED AVERAGE COST OF CAPITAL",null,{"$f":"dms_MultiYear_FinalYear_Result","v":{"$error":"#REF!"}}]
[]
[]
[]
[]
[null,"dms_SourceList","dms_FormControl_Choices",null,"dms_FRCPlength_Num_List","dms_FinalYear_List","dms_CRCPlength_Num_List","dms_CFinalYear_List","dms_CRY_ListF","dms_CRY_ListC"]
[null,"After appeal","Revenue cap",null,1,"FRCP_y1",1,"CRCP_y1","2005-06",2006]
[null,"Draft decision","Revenue yield",null,2,"FRCP_y2",2,"CRCP_y2","2006-07",2007,null,null,null,null,null,null,null,null,null,null,null,null,null,null,null,null,null,null,null,null,null,""]
[null,"Final decision","Weighted average price cap",null,3,"FRCP_y3",3,"CRCP_y3","2007-08","2008"]
[null,"Pass through decision",null,null,4,"FRCP_y4",4,"CRCP_y4","2008-09","2009"]
[null,"PTRM annual update",null,null,5,"FRCP_y5",5,"CRCP_y5","2009-10","2010"]
[null,"PTRM interim update 1",null,null,6,"FRCP_y6",6,"CRCP_y6","2010-11","2011"]
[null,"PTRM interim update 2",null,null,7,"FRCP_y7",7,"CRCP_y7","2011-12","2012"]
[null,"PTRM interim update 3",null,null,8,"FRCP_y8",8,"CRCP_y8","2012-13","2013"]
[null,"PTRM interim update 4",null,null,9,"FRCP_y9",9,"CRCP_y9","2013-14","2014"]
[null,"Regulatory proposal",null,null,10,"FRCP_y10",10,"CRCP_y10","2014-15","2015"]
[null,"Reporting",null,null,null,null,null,null,"2015-16","2016"]
[null,"Revised regulatory proposal",null,null,null,null,null,null,"2016-17","2017"]
[null,"RFM annual update",null,null,null,null,null,null,"2017-18","2018"]
[null,"WACC annual update",null,null,null,null,null,null,"2018-19",2019]
[null,null,null,null,null,null,null,null,"2019-20","2020"]

{"sheet":"Instructions","index":1,"n_rows":27,"n_cols":4,"rows_kept":27,"cut":false,"hidden":false,"merged":[[7,2,7,3],[1,1,1,5],[2,1,2,5],[3,2,3,4],[4,2,4,4],[5,2,5,4],[25,2,25,3],[26,2,26,4],[8,2,8,4],[10,2,10,4],[12,2,12,4],[20,2,20,4],[22,2,22,4],[24,2,24,4]]}
[]
[null,{"$f":"CONCATENATE(dms_Segment,\" Network Service Provider\")","v":"Transmission Network Service Provider"}]
[null,"Annual Reporting RIN Template"]
[null,null,{"$f":"CONCATENATE(\"This template is to be used by \",dms_TradingName,\" to fulfil its reporting obligations to the AER.\")","v":"This template is to be used by AusNet (T) to fulfil its reporting obligations to the AER."}]
[null,null,"INSTRUCTIONS"]
[null,null,"Complete the Business & other details worksheet before entering data or values in any other worksheets. The Business & other details worksheet is linked to other worksheets within the workbook and automatically generates certain column headings and conditional formatting."]
[]
[null,null,"Identifying CONFIDENTIAL INFORMATION:\n\nPlease use the macro at the top of each \nworksheet to identify confidential information. \n\n"]
[null,null,"-Do this by selecting the cell or cells that contain confidential information and then run the Mark selected cells as CONFIDENTIAL macro. This will format the cells a specific colour that is identified by the AER's database which in turn marks that information as confidential.\n\n-To reverse this, select the cell or cells and run the Return cells to NON-CONFIDENTIAL macro"]
[]
[null,null,"UNITS OF MEASURE\n\nAll amounts are to be unrounded and reported in nominal terms on a one for one basis: that is 1000 is to be entered as '1000'.\n\n"]
[]
[null,null,"COLOUR CODING OF INPUT / NON-INPUT CELLS:"]
[null,null,null,"Yellow = Input cell (mandatory)"]
[null,null,null,"Darker yellow = input cell (mandatory)"]
[null,null,null,"Orange = input cell (if data available)"]
[null,null,null,"Grey = Not applicable/No inputs required"]
[null,null,null,"Leave coloured cells blank if no information exists. \nPLEASE DO NOT ENTER TEXT into cells that are to contain numeric data."]
[]
[]
[null,null,"WORKSHEET NAVIGATION\n\nMany tables in the worksheets have been \"grouped\" to allow for easy navigation. To ungroup or group data use the outline symbols in the left margin of excel (for Row groupings) or above the columns (for column groupings). \n\n\n\n"]
[]
[null,null,"RETURNING COMPLETED RESPONSES\n\nPlease return two (2) files to the AER: \n1. A confidential version which must contain a complete set of all responses with confidential information marked using the Mark selected cells CONFIDENTIAL macro and which has been completed using the locked template file provided by the AER. \n\n2. A public version with confidential information either removed completely or aggregated in some form together with writtten consent to disclose the public version of the response.\n\nUse the drop down box on the Business and other details worksheet to identify the file as either confidential ('consolidated') or public. "]
[]
[null,null,"SUBMITTING AMENDED DATA TO THE AER\n\nIf an NSP wishes to correct data previously submitted to the AER it should resubmit that data using the original completed submission as the starting point. Please make any necessary changes to the data. Data that is not being amended should be left unchanged. \n\nNSPs must identify the reason for the amendments in the Amendment Reason box on the  Business and other details worksheet. NSPs may provide further details regarding any amendments in the Amendments worksheet. \n\n."]
[null,null,"NSP may use Amended Data macro to highlight cells\nthat contain amended data."]
[null,null,"Please resubmit two (2) files - a confidential version and a public version of the amended submission to the AER"]

{"sheet":"Contents","index":2,"n_rows":12,"n_cols":2,"rows_kept":12,"cut":false,"hidden":false,"merged":[]}
[null,"REGULATORY REPORTING STATEMENT"]
[null,{"$f":"dms_TradingName","v":"AusNet (T)"}]
[null,{"$f":"CONCATENATE(\"Benchmarking RIN response \",CRY)","v":"Benchmarking RIN response 2015-16"}]
[]
[null,"CONTENTS"]
[]
[]
[]
[]
[]
[]
[null,"3.             ECONOMIC BENCHMARKING"]

{"sheet":"Business & other details","index":3,"n_rows":74,"n_cols":27,"rows_kept":74,"cut":false,"hidden":false,"merged":[[23,4,23,7],[7,1,7,8],[11,1,11,8],[13,2,13,4],[14,2,14,4],[17,2,17,3],[17,4,17,7],[18,4,18,7],[19,2,19,3],[19,4,19,7],[22,2,22,3],[22,4,22,7],[68,4,68,8],[24,2,24,3],[24,4,24,7],[38,2,38,3],[40,2,40,8]]}
[null,{"$f":"(LOOKUP(dms_Model,dms_Model_List,dms_Worksheet_List))","v":"REGULATORY REPORTING STATEMENT"}]
[null,{"$f":"INDEX(dms_TradingNameFull_List,MATCH(dms_TradingName,dms_TradingName_List))","v":"AusNet (T)"}]
[null,{"$f":"CONCATENATE(\"Benchmarking RIN response \",CRY)","v":"Benchmarking RIN response 2015-16"}]
[null,"BUSINESS & OTHER DETAILS"]
[]
[]
[null,"Instructions"]
[null,"Complete the following business details regulatory template before entering data or values in any other regulatory template. This regulatory template is linked to other cells within the spreadsheet and automatically generates column headings."]
[]
[null,"SUBMISSION PARTICULARS INPUT SHEETS"]
[]
[null,"ENTITY DETAILS"]
[]
[null,"Short name","AusNet (T)"]
[null,"ACN / ABN",78079798173]
[]
[]
[null,"Business address","Address 1",null,"Level 31, 2 Southbank Boulevard"]
[null,null,null,"Address 2"]
[null,null,"Suburb",null,"Southbank"]
[null,null,null,"State","Vic","p/code",{"$f":"INDEX(dms_PostCode_List,MATCH(dms_TradingName,dms_TradingName_List))","v":"3006"}]
[]
[null,"Postal address","Address 1",null,"Locked Bag 14051"]
[null,null,null,"Address 2"]
[null,null,"Suburb",null,"Melbourne City Mail Centre"]
[null,null,null,"State","Vic","p/code",8001]
[]
[]
[null,"Contact name/s","Clare Thompson"]
[null,"Contact phone/s","03 9695 6670",null,null,null,null,null,null,null,null,null,null,null,null,null,null,null,null,null,null,null,null,null,null,null,"Tom Hallam"]
[null,"Contact email address/s","Clare.E.Thompson@ausnetservices.com.au",null,null,null,null,null,null,null,null,null,null,null,null,null,null,null,null,null,null,null,null,null,null,null,"Tom Hallam"]
[]
[]
[null,"Current regulatory year","2015-16"]
[]
[]
[]
[]
[null,"Source","Reporting"]
[null,"Data quality (actual, estimate, public, consolidated)","Consolidated"]
[null,"Amended RIN submission - amendment reason"]
[null,"EBSS - First application of scheme in forthcoming period?","No"]
[null,"Submission Date","2016-07-29",null,"Please enter date this file submitted to AER (dd/mm/yyyy)"]
[null,"Sector",{"$f":"INDEX(dms_Sector_List,MATCH(dms_TradingName,dms_TradingName_List))","v":"Electricity"},"dms_Sector","=INDEX(dms_Sector_List,MATCH(dms_TradingName,dms_TradingName_List))"]
[null,"Segment",{"$f":"INDEX(dms_Segment_List,MATCH(dms_TradingName,dms_TradingName_List))","v":"Transmission"},"dms_Segment","=INDEX(dms_Segment_List,MATCH(dms_TradingName,dms_TradingName_List))"]
[null,"Regulatory Year Ending",{"$f":"INDEX(dms_RYE_Formula_Result,MATCH(dms_Model,dms_Model_List))","v":"2015-16"},"dms_RYE","=INDEX(dms_RYE_Formula_Result,MATCH(dms_Model,dms_Model_List))"]
[null,"Reporting Period Type",{"$f":"INDEX(dms_RPT_List,MATCH(dms_TradingName,dms_TradingName_List))","v":"Financial"},"dms_RPT","=INDEX(dms_RPT_List,MATCH(dms_TradingName,dms_TradingName_List))"]
[null,"Model or RIN Type","EB","dms_Model","Drop down selection"]
[null,"Security Classification","Public","dms_Classification","Always Public"]
[null,"Template - version no.",5,"dms_TemplateNumber"]
[null,"Dollar $ real month",{"$f":"INDEX(dms_RPTMonth_List,MATCH(dms_TradingName,dms_TradingName_List))","v":"March"},"dms_RPTMonth","=INDEX(dms_RPTMonth_List,MATCH(dms_TradingName,dms_TradingName_List))"]
[null,"Dollar $ real  (the last month before the FRCP_y1)",{"$f":"CONCATENATE(dms_RPTMonth)&\" \"&VALUE((LEFT(CRY,2))&RIGHT(CRY,2))","v":"March 2016"},"dms_DollarReal","=CONCATENATE(dms_RPTMonth)&\" \"&VALUE((LEFT(CRY,2))&RIGHT(CRY,2))"]
[null,"Form of control",{"$f":"INDEX(dms_FormControl_List,MATCH(dms_TradingName,dms_TradingName_List))","v":"Revenue cap"},"dms_FormControl","=INDEX(dms_FormControl_List,MATCH(dms_TradingName,dms_TradingName_List))"]
[null,"RIN response - version no.",1,"dms_RINversion"]
[null,"Jurisdiction",{"$f":"INDEX(dms_JurisdictionList,MATCH(dms_TradingName,dms_TradingName_List))","v":"Vic"},"dms_Jurisdiction","=INDEX(dms_JurisdictionList,MATCH(dms_TradingName,dms_TradingName_List))"]
[null,"Single Year Model T/F",{"$f":"IF(dms_Model=\"EB\",1,0)","v":1},"EB?"]
[null,null,{"$f":"IF(dms_Model=\"CA\",1,0)","v":0},"CA?","=dms_SingleYear_Model"]
[null,null,{"$f":"IF(dms_Model=\"ARR\",1,0)","v":0},"ARR?"]
[null,"Single Year Final Year Reference","CRY","dms_SingleYear_FinalYear_Ref","This is the reference for EB, CA & ARR RINs"]
[null,"Single Year Final Year Result",{"$f":"INDIRECT(dms_SingleYear_FinalYear_Ref)","v":"2015-16"},"dms_SingleYear_FinalYear_Result","=INDIRECT(dms_SingleYear_FinalYear_Ref)",null,null,null,"Formula errors OK"]
[null,"FRCP length in years",{"$f":"INDEX(dms_FRCPlength_List,MATCH(dms_TradingName,dms_TradingName_List))","v":5},"dms_FRCPlength_Num","=INDEX(dms_FRCPlength_List,MATCH(dms_TradingName,dms_TradingName_List))"]
[null,"Multi Year Final Year Reference",{"$f":"INDEX(dms_FinalYear_List,MATCH(dms_FRCPlength_Num,dms_FRCPlength_Num_List))","v":"FRCP_y5"},"dms_MultiYear_FinalYear_Ref","=INDEX(dms_FinalYear_List,MATCH(dms_FRCPlength_Num,dms_FRCPlength_Num_List))"]
[null,"Multi Year Final Year Result",{"$f":"INDIRECT(dms_MultiYear_FinalYear_Ref)","v":{"$error":"#REF!"}},"dms_MultiYear_FinalYear_Result","=INDIRECT(dms_MultiYear_FinalYear_Ref)",null,null,null,"Formula errors OK"]
[null,"CRCP length in years",{"$f":"INDEX(dms_CRCPlength_List,MATCH(dms_TradingName,dms_TradingName_List))","v":5},"dms_CRCPlength_Num","=INDEX(dms_CRCPlength_List,MATCH(dms_TradingName,dms_TradingName_List))"]
[null,"CRCP Final Year Reference",{"$f":"INDEX(dms_CFinalYear_List,MATCH(dms_CRCPlength_Num,dms_CRCPlength_Num_List))","v":"CRCP_y5"},"dms_CRCP_FinalYear_Ref","=INDEX(dms_CFinalYear_List,MATCH(dms_CRCPlength_Num,dms_CRCPlength_Num_List))"]
[null,"CRCP Final Year Result",{"$f":"INDIRECT(dms_CRCP_FinalYear_Ref)","v":{"$error":"#REF!"}},"dms_CRCP_FinalYear_Num","=INDIRECT(dms_CRCP_FinalYear)",null,null,null,"Formula errors OK"]
[null,"Table 6.6.3 - Public lighting repair - no. business days",{"$f":"INDEX(dms_663_List,MATCH(dms_TradingName,dms_TradingName_List))","v":2},"dms_663"]
[null,"Distribution Determination Reference",{"$f":"INDEX(dms_DeterminationRef_List,MATCH(dms_TradingName,dms_TradingName_List))","v":"transmission determination"}]
[null,"Backcast templates only - unit of measure ","$0s","dms_Backcast_UOM","If the cover sheet is for Backcast data ensure to apply dms_Backcast_UOM named range to this field. Otherwise, do not apply this named range."]
[null,"EB/CA Unit of Measure for Monetary Values","$0s","dms_dollar_nom_UOM","If the cover sheet is attached to an EB files make sure this field is set"]
[]
[null,"discard this record?","NO","dms_DISCARD","If record is to be discarded from DB set this flag to YES"]
[]
[null,"USES NAMED RANGES FLAG","yes","dms_Defined_Names_Used"]

{"sheet":"3.1 Revenue","index":4,"n_rows":40,"n_cols":6,"rows_kept":40,"cut":false,"hidden":false,"merged":[]}
[null,{"$f":"(LOOKUP(dms_Model,dms_Model_List,dms_Worksheet_List))","v":"REGULATORY REPORTING STATEMENT"}]
[null,{"$f":"dms_TradingName","v":"AusNet (T)"}]
[null,{"$f":"CONCATENATE(\"Economic Benchmarking RIN response \", CRY)","v":"Economic Benchmarking RIN response 2015-16"}]
[null,"3.1 REVENUE"]
[]
[]
[null,"3.1.1 REVENUE GROUPING BY CHARGEABLE QUANTITY"]
[null,null,"REVENUE\n($0's)"]
[null,null,{"$f":"CRY","v":"2015-16"}]
["TREV0101","From Fixed Customer (Exit Point) Charges",65639991.113015041]
["TREV0102","From Variable Customer (Exit Point) Charges",0]
["TREV0103","From Fixed Generator (Entry Point) Charges",6599612.7536062673]
["TREV0104","From Variable Generator (Entry Point) Charges",0]
["TREV0105","From Fixed Energy Usage Charges (Charge per day basis)",0]
["TREV0106","From Variable Energy Usage charges (Charge per kWh basis)",0]
["TREV0107","From Energy based Common Service and General Charges",0]
["TREV0108","From Fixed Demand based Usage Charges",0]
["TREV0109","From Variable Demand based Usage Charges",0]
["TREV0110","Revenue from other Sources",499566497.37989873]
["TREV01","Total revenue by chargeable quantity",{"$f":"SUM(C10:C19)","v":571806101.24652004}]
[]
[]
[null,"3.1.2 REVENUE GROUPING BY TYPE OF CONNECTED EQUIPMENT"]
[null,null,"REVENUE\n($0's)"]
[null,null,{"$f":"CRY","v":"2015-16"}]
["TREV0201","From Other connected transmission networks",0]
["TREV0202","From Distribution networks",65321094.425067142]
["TREV0203","From Directly connected end–users",318896.68794789619]
["TREV0204","From Generators",6599612.7536062673]
["TREV0205","Other revenue",499566497.37989873]
["TREV02","Total revenue by type of connected equipment",{"$f":"SUM(C26:C30)","v":571806101.24652004}]
[]
[null,null,null,null,null,"`"]
[null,"3.1.3 REVENUE (penalties) ALLOWED (deducted) THROUGH INCENTIVE SCHEMES"]
[null,null,"REVENUE\n($0's)"]
[null,null,{"$f":"CRY","v":"2015-16"}]
["TREV0301","EBSS",13109494.678598169]
["TREV0302","STPIS",14929263]
["TREV0303","Other",0]
["TREV03","Total revenue of incentive schemes",28038757.678598199]

{"sheet":"3.2 Operating expenditure","index":5,"n_rows":56,"n_cols":3,"rows_kept":56,"cut":false,"hidden":false,"merged":[]}
[null,"REGULATORY REPORTING STATEMENT"]
[null,{"$f":"dms_TradingName","v":"AusNet (T)"}]
[null,{"$f":"CONCATENATE(\"Benchmarking RIN response \",CRY)","v":"Benchmarking RIN response 2015-16"}]
[null,"3.2 OPERATING EXPENDITURE"]
[]
[]
[null,"Instructions"]
[null,{"$f":"CONCATENATE(\"In table 3.2.1, please list each opex category reported in response to \",dms_TradingName, \"'s annual reporting RIN and report opex for each category.\")","v":"In table 3.2.1, please list each opex category reported in response to AusNet (T)'s annual reporting RIN and report opex for each category."}]
[]
[]
[null,"3.2.1 - OPEX CATEGORIES"]
[null,"CURRENT OPEX CATEGORIES AND COST ALLOCATIONS"]
[null,null,"EXPENDITURE\n($0's)"]
[null,null,{"$f":"CRY","v":"2015-16"}]
["TOPEX0101","Network Operations",6592557.6865628185]
["TOPEX0102","Network Maintenance",31689040.406551272]
["TOPEX0103","Asset Works Program",5575213.2668231456]
["TOPEX0104","Asset Works Program - Asset Management Support",1989110.5260495124]
["TOPEX0105","Availability Rebate",1766695.22]
["TOPEX0106","Easement Tax",111322940]
["TOPEX0107","Insurance",4349685.5280948216]
["TOPEX0108","Taxes and Charges",4609696.88]
["TOPEX0109","Self Insurance Costs",1781841.9230769232]
["TOPEX0110","OHS",765031.25557498855]
["TOPEX0111","Finance",5281049.8128641769]
["TOPEX0112","HR",3961377.8220469593]
["TOPEX0113","IT ",12652539.048380302]
["TOPEX0114","Building Services",1962179.3930798126]
["TOPEX0115","Strategy and Business Development",1480686.2851393761]
["TOPEX0116","Other Corporate Services",4933542.8208189122]
["TOPEX0117"]
["TOPEX0118"]
["TOPEX0119"]
["TOPEX0120"]
["TOPEX0121"]
["TOPEX0122"]
["TOPEX0123"]
["TOPEX0124"]
["TOPEX0125"]
["TOPEX0126"]
["TOPEX0127"]
["TOPEX0128"]
["TOPEX0129"]
["TOPEX0130"]
["TOPEX0131"]
["TOPEX0132"]
["TOPEX0133"]
["TOPEX0134"]
["TOPEX0135"]
["TOPEX0136"]
["TOPEX0137"]
["TOPEX0138"]
["TOPEX0139"]
["TOPEX0140"]
["TOPEX0141"]
["TOPEX01","Total opex ",{"$f":"SUM(C15:C55)","v":200713187.87506306}]

{"sheet":"3.2.3 Provisions","index":6,"n_rows":370,"n_cols":4,"rows_kept":370,"cut":false,"hidden":false,"merged":[]}
[null,"REGULATORY REPORTING STATEMENT"]
[null,{"$f":"dms_TradingName","v":"AusNet (T)"}]
[null,{"$f":"CONCATENATE(\"Benchmarking RIN response \",CRY)","v":"Benchmarking RIN response 2015-16"}]
[null,"3.2 OPERATING EXPENDITURE"]
[]
[null,"The is ONE table on this worksheet. Each Provision has been grouped for ease of navigation. See the Instructions sheet on how to group and ungroup tables."]
[]
[null,"3.2.3 - PROVISIONS"]
[null,null,null,"$0's"]
[null,null,null,{"$f":"CRY","v":"2015-16"}]
["TOPEX03A","Provision for Employee Entitlements"]
[null,"Provisions for employee entitlements are liabilities for wages and salaries, including non-monetary benefits and annual leave recognised in respect of employees’ services up to the reporting date and are measured at the amounts expected to be paid when the liabilities are settled."]
["TOPEX0301A","Opening balance (the carrying amount at the beginning of the period)",null,27410577.526347786]
[null,"Additional provisions made in the period, including increases to existing provisions"]
["TOPEX0302A","Opex component",null,11744491.45030213]
["TOPEX0303A","Capex component",null,5314928.4353631232]
["TOPEX0304A","Other component",null,0]
[null,"Amounts used (that is, incurred and charged against the provision) during the period"]
["TOPEX0305A","Opex component",null,-6797335.0437997123]
["TOPEX0306A","Capex component",null,-3076110.1459230864]
["TOPEX0307A","Other component",null,0]
[null,"Unused amounts reversed during the period"]
["TOPEX0308A","Opex component",null,-1563590.4166506254]
["TOPEX0309A","Capex component",null,-707597.36186822259]
["TOPEX0310A","Other component",null,0]
[null,"The increase during the period in the discounted amount arising from the passage of time and the effect of any change in the discount rate"]
["TOPEX0311A","Opex component",null,0]
["TOPEX0312A","Capex component",null,0]
["TOPEX0313A","Other component",null,0]
["TOPEX0314A","Closing balance (carrying amount at the end of the period)",null,32325364.443771392]
["TOPEX03B","Provision for Superannuation"]
[null,"The provision represents the superannuation liability of the defined benefit superannuation fund."]
["TOPEX0301B","Opening balance (the carrying amount at the beginning of the period)",null,12315688.266173037]
[null,"Additional provisions made in the period, including increases to existing provisions"]
["TOPEX0302B","Opex component",null,1863117.372889756]
["TOPEX0303B","Capex component",null,843147.23591850908]
["TOPEX0304B","Other component",null,0]
[null,"Amounts used (that is, incurred and charged against the provision) during the period"]
["TOPEX0305B","Opex component",null,-655274.37917603017]
["TOPEX0306B","Capex component",null,-296542.12322305416]
["TOPEX0307B","Other component",null,0]
[null,"Unused amounts reversed during the period"]
["TOPEX0308B","Opex component",null,0]
["TOPEX0309B","Capex component",null,0]
["TOPEX0310B","Other component",null,0]
[null,"The increase during the period in the discounted amount arising from the passage of time and the effect of any change in the discount rate",null," "]
["TOPEX0311B","Opex component",null,0]
["TOPEX0312B","Capex component",null,0]
["TOPEX0313B","Other component",null,-9395662.7148857769]
["TOPEX0314B","Closing balance (carrying amount at the end of the period)",null,4674473.6576964408]
["TOPEX03C","Provision for Corporate Restructuring"]
[null,"The provision represents the liabilities for transition of the shared information technology (IT) services into the core AusNet Services IT function."]
["TOPEX0301C","Opening balance (the carrying amount at the beginning of the period)",null,268584.44000000018]
[null,"Additional provisions made in the period, including increases to existing provisions"]
["TOPEX0302C","Opex component",null,255486.22999999998]
["TOPEX0303C","Capex component"]
["TOPEX0304C","Other component"]
[null,"Amounts used (that is, incurred and charged against the provision) during the period"]
["TOPEX0305C","Opex component",null,-45227.840000000004]
["TOPEX0306C","Capex component"]
["TOPEX0307C","Other component"]
[null,"Unused amounts reversed during the period"]
["TOPEX0308C","Opex component",null,0]
["TOPEX0309C","Capex component"]
["TOPEX0310C","Other component"]
[null,"The increase during the period in the discounted amount arising from the passage of time and the effect of any change in the discount rate"]
["TOPEX0311C","Opex component"]
["TOPEX0312C","Capex component"]
["TOPEX0313C","Other component"]
["TOPEX0314C","Closing balance (carrying amount at the end of the period)",null,478842.83000000013]
["TOPEX03D","Provision for Make Good"]
[null,"The provision represents the cost of remediating a site at the end of the lease term."]
["TOPEX0301D","Opening balance (the carrying amount at the beginning of the period)",null,942180.1719165775]
[null,"Additional provisions made in the period, including increases to existing provisions"]
["TOPEX0302D","Opex component",null,119272.37521561605]
["TOPEX0303D","Capex component",null,0]
["TOPEX0304D","Other component",null,0]
[null,"Amounts used (that is, incurred and charged against the provision) during the period"]
["TOPEX0305D","Opex component",null,0]
["TOPEX0306D","Capex component",null,0]
["TOPEX0307D","Other component",null,0]
[null,"Unused amounts reversed during the period"]
["TOPEX0308D","Opex component",null,0]
["TOPEX0309D","Capex component",null,0]
["TOPEX0310D","Other component",null,0]
[null,"The increase during the period in the discounted amount arising from the passage of time and the effect of any change in the discount rate"]
["TOPEX0311D","Opex component",null,0]
["TOPEX0312D","Capex component",null,0]
["TOPEX0313D","Other component",null,0]
["TOPEX0314D","Closing balance (carrying amount at the end of the period)",null,1061452.5471321936]
["TOPEX03E","Provision name"]
[null,"Brief description of provision"]
["TOPEX0301E","Opening balance (the carrying amount at the beginning of the period)"]
[null,"Additional provisions made in the period, including increases to existing provisions"]
["TOPEX0302E","Opex component"]
["TOPEX0303E","Capex component"]
["TOPEX0304E","Other component"]
[null,"Amounts used (that is, incurred and charged against the provision) during the period"]
["TOPEX0305E","Opex component"]
["TOPEX0306E","Capex component"]
["TOPEX0307E","Other component"]
[null,"Unused amounts reversed during the period"]
["TOPEX0308E","Opex component"]
["TOPEX0309E","Capex component"]
["TOPEX0310E","Other component"]
[null,"The increase during the period in the discounted amount arising from the passage of time and the effect of any change in the discount rate"]
["TOPEX0311E","Opex component"]
["TOPEX0312E","Capex component"]
["TOPEX0313E","Other component"]
["TOPEX0314E","Closing balance (carrying amount at the end of the period)"]
["TOPEX03F","Provision name"]
[null,"Brief description of provision"]
["TOPEX0301F","Opening balance (the carrying amount at the beginning of the period)"]
[null,"Additional provisions made in the period, including increases to existing provisions"]
["TOPEX0302F","Opex component"]
["TOPEX0303F","Capex component"]
["TOPEX0304F","Other component"]
[null,"Amounts used (that is, incurred and charged against the provision) during the period"]
["TOPEX0305F","Opex component"]
["TOPEX0306F","Capex component"]
["TOPEX0307F","Other component"]
[null,"Unused amounts reversed during the period"]
["TOPEX0308F","Opex component"]
["TOPEX0309F","Capex component"]
["TOPEX0310F","Other component"]
[null,"The increase during the period in the discounted amount arising from the passage of time and the effect of any change in the discount rate"]
["TOPEX0311F","Opex component"]
["TOPEX0312F","Capex component"]
["TOPEX0313F","Other component"]
["TOPEX0314F","Closing balance (carrying amount at the end of the period)"]
["TOPEX03G","Provision name"]
[null,"Brief description of provision"]
["TOPEX0301G","Opening balance (the carrying amount at the beginning of the period)"]
[null,"Additional provisions made in the period, including increases to existing provisions"]
["TOPEX0302G","Opex component"]
["TOPEX0303G","Capex component"]
["TOPEX0304G","Other component"]
[null,"Amounts used (that is, incurred and charged against the provision) during the period"]
["TOPEX0305G","Opex component"]
["TOPEX0306G","Capex component"]
["TOPEX0307G","Other component"]
[null,"Unused amounts reversed during the period"]
["TOPEX0308G","Opex component"]
["TOPEX0309G","Capex component"]
["TOPEX0310G","Other component"]
[null,"The increase during the period in the discounted amount arising from the passage of time and the effect of any change in the discount rate"]
["TOPEX0311G","Opex component"]
["TOPEX0312G","Capex component"]
["TOPEX0313G","Other component"]
["TOPEX0314G","Closing balance (carrying amount at the end of the period)"]
["TOPEX03H","Provision name"]
[null,"Brief description of provision"]
["TOPEX0301H","Opening balance (the carrying amount at the beginning of the period)"]
[null,"Additional provisions made in the period, including increases to existing provisions"]
["TOPEX0302H","Opex component"]
["TOPEX0303H","Capex component"]
["TOPEX0304H","Other component"]
[null,"Amounts used (that is, incurred and charged against the provision) during the period"]
["TOPEX0305H","Opex component"]
["TOPEX0306H","Capex component"]
["TOPEX0307H","Other component"]
[null,"Unused amounts reversed during the period"]
["TOPEX0308H","Opex component"]
["TOPEX0309H","Capex component"]
["TOPEX0310H","Other component"]
[null,"The increase during the period in the discounted amount arising from the passage of time and the effect of any change in the discount rate"]
["TOPEX0311H","Opex component"]
["TOPEX0312H","Capex component"]
["TOPEX0313H","Other component"]
["TOPEX0314H","Closing balance (carrying amount at the end of the period)"]
["TOPEX03I","Provision name"]
[null,"Brief description of provision"]
["TOPEX0301I","Opening balance (the carrying amount at the beginning of the period)"]
[null,"Additional provisions made in the period, including increases to existing provisions"]
["TOPEX0302I","Opex component"]
["TOPEX0303I","Capex component"]
["TOPEX0304I","Other component"]
[null,"Amounts used (that is, incurred and charged against the provision) during the period"]
["TOPEX0305I","Opex component"]
["TOPEX0306I","Capex component"]
["TOPEX0307I","Other component"]
[null,"Unused amounts reversed during the period"]
["TOPEX0308I","Opex component"]
["TOPEX0309I","Capex component"]
["TOPEX0310I","Other component"]
[null,"The increase during the period in the discounted amount arising from the passage of time and the effect of any change in the discount rate"]
["TOPEX0311I","Opex component"]
["TOPEX0312I","Capex component"]
["TOPEX0313I","Other component"]
["TOPEX0314I","Closing balance (carrying amount at the end of the period)"]
["TOPEX03J","Provision name"]
[null,"Brief description of provision"]
["TOPEX0301J","Opening balance (the carrying amount at the beginning of the period)"]
[null,"Additional provisions made in the period, including increases to existing provisions"]
["TOPEX0302J","Opex component"]
["TOPEX0303J","Capex component"]
["TOPEX0304J","Other component"]
[null,"Amounts used (that is, incurred and charged against the provision) during the period"]
["TOPEX0305J","Opex component"]
["TOPEX0306J","Capex component"]
["TOPEX0307J","Other component"]
[null,"Unused amounts reversed during the period"]
["TOPEX0308J","Opex component"]
["TOPEX0309J","Capex component"]
["TOPEX0310J","Other component"]
[null,"The increase during the period in the discounted amount arising from the passage of time and the effect of any change in the discount rate"]
["TOPEX0311J","Opex component"]
["TOPEX0312J","Capex component"]
["TOPEX0313J","Other component"]
["TOPEX0314J","Closing balance (carrying amount at the end of the period)"]
["TOPEX03K","Provision name"]
[null,"Brief description of provision"]
["TOPEX0301K","Opening balance (the carrying amount at the beginning of the period)"]
[null,"Additional provisions made in the period, including increases to existing provisions"]
["TOPEX0302K","Opex component"]
["TOPEX0303K","Capex component"]
["TOPEX0304K","Other component"]
[null,"Amounts used (that is, incurred and charged against the provision) during the period"]
["TOPEX0305K","Opex component"]
["TOPEX0306K","Capex component"]
["TOPEX0307K","Other component"]
[null,"Unused amounts reversed during the period"]
["TOPEX0308K","Opex component"]
["TOPEX0309K","Capex component"]
["TOPEX0310K","Other component"]
[null,"The increase during the period in the discounted amount arising from the passage of time and the effect of any change in the discount rate"]
["TOPEX0311K","Opex component"]
["TOPEX0312K","Capex component"]
["TOPEX0313K","Other component"]
["TOPEX0314K","Closing balance (carrying amount at the end of the period)"]
["TOPEX03L","Provision name"]
[null,"Brief description of provision"]
["TOPEX0301L","Opening balance (the carrying amount at the beginning of the period)"]
[null,"Additional provisions made in the period, including increases to existing provisions"]
["TOPEX0302L","Opex component"]
["TOPEX0303L","Capex component"]
["TOPEX0304L","Other component"]
[null,"Amounts used (that is, incurred and charged against the provision) during the period"]
["TOPEX0305L","Opex component"]
["TOPEX0306L","Capex component"]
["TOPEX0307L","Other component"]
[null,"Unused amounts reversed during the period"]
["TOPEX0308L","Opex component"]
["TOPEX0309L","Capex component"]
["TOPEX0310L","Other component"]
[null,"The increase during the period in the discounted amount arising from the passage of time and the effect of any change in the discount rate"]
["TOPEX0311L","Opex component"]
["TOPEX0312L","Capex component"]
["TOPEX0313L","Other component"]
["TOPEX0314L","Closing balance (carrying amount at the end of the period)"]
["TOPEX03M","Provision name"]
[null,"Brief description of provision"]
["TOPEX0301M","Opening balance (the carrying amount at the beginning of the period)"]
[null,"Additional provisions made in the period, including increases to existing provisions"]
["TOPEX0302M","Opex component"]
["TOPEX0303M","Capex component"]
["TOPEX0304M","Other component"]
[null,"Amounts used (that is, incurred and charged against the provision) during the period"]
["TOPEX0305M","Opex component"]
["TOPEX0306M","Capex component"]
["TOPEX0307M","Other component"]
[null,"Unused amounts reversed during the period"]
["TOPEX0308M","Opex component"]
["TOPEX0309M","Capex component"]
["TOPEX0310M","Other component"]
[null,"The increase during the period in the discounted amount arising from the passage of time and the effect of any change in the discount rate"]
["TOPEX0311M","Opex component"]
["TOPEX0312M","Capex component"]
["TOPEX0313M","Other component"]
["TOPEX0314M","Closing balance (carrying amount at the end of the period)"]
["TOPEX03N","Provision name"]
[null,"Brief description of provision"]
["TOPEX0301N","Opening balance (the carrying amount at the beginning of the period)"]
[null,"Additional provisions made in the period, including increases to existing provisions"]
["TOPEX0302N","Opex component"]
["TOPEX0303N","Capex component"]
["TOPEX0304N","Other component"]
[null,"Amounts used (that is, incurred and charged against the provision) during the period"]
["TOPEX0305N","Opex component"]
["TOPEX0306N","Capex component"]
["TOPEX0307N","Other component"]
[null,"Unused amounts reversed during the period"]
["TOPEX0308N","Opex component"]
["TOPEX0309N","Capex component"]
["TOPEX0310N","Other component"]
[null,"The increase during the period in the discounted amount arising from the passage of time and the effect of any change in the discount rate"]
["TOPEX0311N","Opex component"]
["TOPEX0312N","Capex component"]
["TOPEX0313N","Other component"]
["TOPEX0314N","Closing balance (carrying amount at the end of the period)"]
["TOPEX03O","Provision name"]
[null,"Brief description of provision"]
["TOPEX0301O","Opening balance (the carrying amount at the beginning of the period)"]
[null,"Additional provisions made in the period, including increases to existing provisions"]
["TOPEX0302O","Opex component"]
["TOPEX0303O","Capex component"]
["TOPEX0304O","Other component"]
[null,"Amounts used (that is, incurred and charged against the provision) during the period"]
["TOPEX0305O","Opex component"]
["TOPEX0306O","Capex component"]
["TOPEX0307O","Other component"]
[null,"Unused amounts reversed during the period"]
["TOPEX0308O","Opex component"]
["TOPEX0309O","Capex component"]
["TOPEX0310O","Other component"]
[null,"The increase during the period in the discounted amount arising from the passage of time and the effect of any change in the discount rate"]
["TOPEX0311O","Opex component"]
["TOPEX0312O","Capex component"]
["TOPEX0313O","Other component"]
["TOPEX0314O","Closing balance (carrying amount at the end of the period)"]
["TOPEX03P","Provision name"]
[null,"Brief description of provision"]
["TOPEX0301P","Opening balance (the carrying amount at the beginning of the period)"]
[null,"Additional provisions made in the period, including increases to existing provisions"]
["TOPEX0302P","Opex component"]
["TOPEX0303P","Capex component"]
["TOPEX0304P","Other component"]
[null,"Amounts used (that is, incurred and charged against the provision) during the period"]
["TOPEX0305P","Opex component"]
["TOPEX0306P","Capex component"]
["TOPEX0307P","Other component"]
[null,"Unused amounts reversed during the period"]
["TOPEX0308P","Opex component"]
["TOPEX0309P","Capex component"]
["TOPEX0310P","Other component"]
[null,"The increase during the period in the discounted amount arising from the passage of time and the effect of any change in the discount rate"]
["TOPEX0311P","Opex component"]
["TOPEX0312P","Capex component"]
["TOPEX0313P","Other component"]
["TOPEX0314P","Closing balance (carrying amount at the end of the period)"]
["TOPEX03Q","Provision name"]
[null,"Brief description of provision"]
["TOPEX0301Q","Opening balance (the carrying amount at the beginning of the period)"]
[null,"Additional provisions made in the period, including increases to existing provisions"]
["TOPEX0302Q","Opex component"]
["TOPEX0303Q","Capex component"]
["TOPEX0304Q","Other component"]
[null,"Amounts used (that is, incurred and charged against the provision) during the period"]
["TOPEX0305Q","Opex component"]
["TOPEX0306Q","Capex component"]
["TOPEX0307Q","Other component"]
[null,"Unused amounts reversed during the period"]
["TOPEX0308Q","Opex component"]
["TOPEX0309Q","Capex component"]
["TOPEX0310Q","Other component"]
[null,"The increase during the period in the discounted amount arising from the passage of time and the effect of any change in the discount rate"]
["TOPEX0311Q","Opex component"]
["TOPEX0312Q","Capex component"]
["TOPEX0313Q","Other component"]
["TOPEX0314Q","Closing balance (carrying amount at the end of the period)"]
["TOPEX03R","Provision name"]
[null,"Brief description of provision"]
["TOPEX0301R","Opening balance (the carrying amount at the beginning of the period)"]
[null,"Additional provisions made in the period, including increases to existing provisions"]
["TOPEX0302R","Opex component"]
["TOPEX0303R","Capex component"]
["TOPEX0304R","Other component"]
[null,"Amounts used (that is, incurred and charged against the provision) during the period"]
["TOPEX0305R","Opex component"]
["TOPEX0306R","Capex component"]
["TOPEX0307R","Other component"]
[null,"Unused amounts reversed during the period"]
["TOPEX0308R","Opex component"]
["TOPEX0309R","Capex component"]
["TOPEX0310R","Other component"]
[null,"The increase during the period in the discounted amount arising from the passage of time and the effect of any change in the discount rate"]
["TOPEX0311R","Opex component"]
["TOPEX0312R","Capex component"]
["TOPEX0313R","Other component"]
["TOPEX0314R","Closing balance (carrying amount at the end of the period)"]

{"sheet":"3.3 Assets (RAB)","index":7,"n_rows":90,"n_cols":3,"rows_kept":90,"cut":false,"hidden":false,"merged":[]}
[null,"REGULATORY REPORTING STATEMENT"]
[null,{"$f":"dms_TradingName","v":"AusNet (T)"}]
[null,{"$f":"CONCATENATE(\"Benchmarking RIN response \",CRY)","v":"Benchmarking RIN response 2015-16"}]
[null,"3.3 ASSETS"]
[]
[null,"There are FOUR tables on this worksheet. Each table has been grouped (and sub-grouped) for ease of navigation. See the Instructions sheet on how to group or ungroup tables. "]
[]
[null,"3.3.1 - REGULATORY ASSET BASE VALUES"]
[null,null,"($0's)"]
[null,null,{"$f":"CRY","v":"2015-16"}]
[null,"For total asset base:"]
["TRAB0101","Opening value",2834135324.3016791]
["TRAB0102","Inflation addition",65403122.868500687]
["TRAB0103","Straight line depreciation",-152613983.36791819]
["TRAB0105","Actual additions (recognised in RAB)",133160817.65741587]
["TRAB0106","Disposals ",0]
["TRAB0107","Closing value ",2880085281.4596777]
[]
[null,"3.3.2 - ASSET VALUE ROLL FORWARD"]
[null,null,"($0's)"]
[null,null,{"$f":"CRY","v":"2015-16"}]
[null,"For overhead transmission assets:"]
["TRAB0201","Opening value",1080951640.4222994]
["TRAB0202","Inflation addition",24945037.855899371]
["TRAB0203","Straight line depreciation",-46186169.5947183]
["TRAB0205","Actual additions (recognised in RAB)",19174674.742733866]
["TRAB0206","Disposals ",0]
["TRAB0207","Closing value ",1078885183.4262142]
[null,"For underground transmission assets:"]
["TRAB0301","Opening value",35268442.509224705]
["TRAB0302","Inflation addition",813887.13482826739]
["TRAB0303","Straight line depreciation",-1506926.1252392849]
["TRAB0305","Actual additions (recognised in RAB)",0]
["TRAB0306","Disposals ",0]
["TRAB0307","Closing value ",34575403.518813692]
[null,"For transmission switchyards, substations"]
["TRAB0401","Opening value",1246631051.1711879]
["TRAB0402","Inflation addition",28768408.873181429]
["TRAB0403","Straight line depreciation",-62031532.721132807]
["TRAB0405","Actual additions (recognised in RAB)",58241710.752741136]
["TRAB0406","Disposals ",0]
["TRAB0407","Closing value ",1271609638.0759776]
[null,"For easements:"]
["TRAB0501","Opening value",130999434.95203204]
["TRAB0502","Inflation addition",3023063.8835084499]
["TRAB0503","Straight line depreciation",0]
["TRAB0505","Actual additions (recognised in RAB)",0]
["TRAB0506","Disposals ",0]
["TRAB0507","Closing value ",134022498.83554049]
[null,"For “other” assets with long lives:"]
["TRAB0601","Opening value",284863734.77321941]
["TRAB0602","Inflation addition",6573778.4947666414]
["TRAB0603","Straight line depreciation",-31074208.003552362]
["TRAB0605","Actual additions (recognised in RAB)",20609119.352084957]
["TRAB0606","Disposals ",0]
["TRAB0607","Closing value ",280972424.61651862]
[null,"For “other” assets with short lives:"]
["TRAB0701","Opening value",55421020.473715976]
["TRAB0702","Inflation addition",1278946.6263165302]
["TRAB0703","Straight line depreciation",-11815146.923275458]
["TRAB0705","Actual additions (recognised in RAB)",35135312.809855901]
["TRAB0706","Disposals ",0]
["TRAB0707","Closing value ",80020132.986612946]
[]
[]
[null,"3.3.3 - TOTAL DISAGGREGATED RAB ASSET VALUES"]
[null,null,"($0's)"]
[null,null,{"$f":"CRY","v":"2015-16"}]
["TRAB0801","Overhead transmission assets (wires and towers/poles etc)",1079918411.9242568]
["TRAB0802","Underground transmission assets (cables, ducts etc)",34921923.014019199]
["TRAB0803","Substations, switchyards, Transformers etc with transmission function",1259120344.6235828]
["TRAB0804","Easements",132510966.89378627]
["TRAB0805","Other assets with long lives (please specify)",282918079.69486904]
["TRAB0806","Other assets with short lives (please specify)",67720576.730164468]
[]
[null,"3.3.4 - ASSET LIVES"]
[null,null,"Service Life \n(Years)"]
[null,null,{"$f":"CRY","v":"2015-16"}]
[null,"Asset Lives – estimated service life of new assets"]
["TRAB0901","Overhead transmission assets ",68.599999999999994]
["TRAB0902","Underground transmission assets",60]
["TRAB0903","Switchyard, substation and transformer assets",40.6]
["TRAB0904","“Other” assets with long lives",16.926200764022241]
["TRAB0905","“Other assets with short lives",5.1207299016006234]
[null,"Asset Lives – estimated residual service life"]
["TRAB1001","Overhead transmission assets ",27.28573421345072]
["TRAB1002","Underground transmission assets",37.865000000000002]
["TRAB1003","Switchyard, substation and transformer assets",15.000235147436534]
["TRAB1004","Other assets with long lives",12.38386619640387]
["TRAB1005","Other assets with short lives",3.496415374270645]

{"sheet":"3.4 Operational data","index":8,"n_rows":93,"n_cols":4,"rows_kept":93,"cut":false,"hidden":false,"merged":[]}
[null,"REGULATORY REPORTING STATEMENT"]
[null,{"$f":"dms_TradingName","v":"AusNet (T)"}]
[null,{"$f":"CONCATENATE(\"Benchmarking RIN response \",CRY)","v":"Benchmarking RIN response 2015-16"}]
[null,"3.4 OPERATIONAL DATA"]
[]
[null,"There are THREE tables on this worksheet. Each table has been grouped for ease of navigation. See the Instructions sheet on how to group or ungroup tables. "]
[]
[null,"3.4.1 - ENERGY DELIVERY"]
[null,null,null,"VOLUMES (0's)"]
[null,null,"Units",{"$f":"CRY","v":"2015-16"}]
[null,"Energy Grouping by Downstream Connection type"]
["TOPED0101","To Other connected transmission networks","GWh"]
["TOPED0102","To Distribution networks","GWh"]
["TOPED0103","To Directly connected end–users (330 kV)","GWh"]
["TOPED0104","To Directly connected end–users (275 kV)","GWh"]
["TOPED0105","To Directly connected end–users (220 kV)","GWh"]
["TOPED0106","To Directly connected end–users (132 kV)","GWh"]
["TOPED0107","To Directly connected end–users (110 kV)","GWh"]
["TOPED0108","To Directly connected end–users (44 kV) ","GWh"]
["TOPED0109","To Directly connected end–users (33 kV)","GWh"]
["TOPED0110","To Directly connected end–users (22 kV)","GWh"]
["TOPED0111","To Directly connected end–users (11 kV)","GWh"]
["TOPED0112","To Directly connected end–users (6.6 kV)","GWh"]
["TOPED0113","Pumping and Power Station Auxillaries","GWh"]
["TOPED01","Total energy transported",null,{"$f":"SUM(D12:D24)","v":0}]
[]
[]
[null,"3.4.2 -  CONNECTION POINTS"]
[null,null,null,"VOLUMES (0's)"]
[null,null,null,{"$f":"CRY","v":"2015-16"}]
[null,"Number of entry points at each transmission voltage level"]
["TOPCP0101","500kV"]
["TOPCP0102","330kV"]
["TOPCP0103","275kV"]
["TOPCP0104","220kV"]
["TOPCP0105","132 kV"]
["TOPCP0106","110kV"]
["TOPCP0107","66 kV"]
["TOPCP0108","33 kV"]
["TOPCP0109","22 kV"]
["TOPCP0110","11 kV"]
["TOPCP0111","6.6 kV"]
[]
[null,"Number of exit points at each transmission voltage level "]
["TOPCP0201","500kV"]
["TOPCP0202","330kV"]
["TOPCP0203","275kV"]
["TOPCP0204","220kV"]
["TOPCP0205","132 kV"]
["TOPCP0206","110kV"]
["TOPCP0207","66 kV"]
["TOPCP0208","44 kV"]
["TOPCP0209","33kV"]
["TOPCP0210","22kV"]
["TOPCP0211","11kV"]
["TOPCP0212","6.6kV"]
[]
[]
[]
[null,"3.4.3 - SYSTEM DEMAND"]
[null,null,null,"VOLUMES (0's)"]
[null,null,"Units",{"$f":"CRY","v":"2015-16"}]
[null,"3.4.3.1 - Annual system maximum demand characteristics – MW measure"]
["TOPSD0101","Transmission System coincident maximum demand","MW"]
["TOPSD0102","Transmission System coincident weather adjusted maximum demand 10% POE","MW"]
["TOPSD0103","Transmission System coincident weather adjusted maximum demand 50% POE","MW"]
["TOPSD0104","Transmission System non-coincident summated maximum demand","MW"]
["TOPSD0105","Transmission System non-coincident weather adjusted summated maximum demand 10% POE","MW"]
["TOPSD0106","Transmission System non-coincident weather adjusted summated maximum demand 50% POE","MW"]
[]
[null,"3.4.3.2 - Annual system maximum demand characteristics – MVA measure"]
["TOPSD0201","Transmission System coincident maximum demand","MVA"]
["TOPSD0202","Transmission System coincident weather adjusted maximum demand 10% POE","MVA"]
["TOPSD0203","Transmission System coincident weather adjusted maximum demand 50% POE","MVA"]
["TOPSD0204","Transmission System non-coincident summated maximum demand","MVA"]
["TOPSD0205","Transmission System non-coincident weather adjusted summated maximum demand 10% POE","MVA"]
["TOPSD0206","Transmission System non-coincident weather adjusted summated maximum demand 50% POE","MVA"]
[]
[null,"3.4.3.3 - Power factor"]
[null,"Power factor conversion between MVA and MW"]
["TOPSD0301","Average overall network power factor conversion between MVA and MW","Factor"]
["TOPSD0302","Average power factor conversion for 500 kV lines","Factor"]
["TOPSD0303","Average power factor conversion for 330 kV lines","Factor"]
["TOPSD0304","Average power factor conversion for  275 kV lines","Factor"]
["TOPSD0305","Average power factor conversion for  220 kV lines","Factor"]
["TOPSD0306","Average power factor conversion for  132 kV lines","Factor"]
["TOPSD0307","Average power factor conversion for  110 kV lines","Factor"]
["TOPSD0308","Average power factor conversion for  88 kV lines","Factor"]
["TOPSD0309","Average power factor conversion for  66 kV lines","Factor"]
["TOPSD0310","Average power factor conversion for  33 kV lines","Factor"]
["TOPSD0311","Average power factor conversion for  22 kV lines","Factor"]
["TOPSD0311","Average power factor conversion for  11 kV lines","Factor"]
["TOPSD0312","Average power factor conversion for  6.6 kV lines","Factor"]

{"sheet":"3.5 Physical assets","index":9,"n_rows":74,"n_cols":4,"rows_kept":74,"cut":false,"hidden":false,"merged":[]}
[null,"REGULATORY REPORTING STATEMENT"]
[null,{"$f":"dms_TradingName","v":"AusNet (T)"}]
[null,{"$f":"CONCATENATE(\"Benchmarking RIN response \",CRY)","v":"Benchmarking RIN response 2015-16"}]
[null,"3.5 PHYSICAL ASSETS"]
[]
[null,"There is ONE table on this worksheet. It has been sub-grouped for ease of navigation. See the Instructions sheet on how to group or ungroup tables. "]
[]
[null,"3.5.1 - TRANSMISSION SYSTEM CAPACITIES "]
[null,null,null,"(0's)"]
[null,null,"Unit",{"$f":"CRY","v":"2015-16"}]
[null,"3.5.1.1 - Overhead network length of circuit at each voltage"]
["TPA0101","500 kV","km",1479.3789499390818]
["TPA0102","330 kV","km",739.34271186172032]
["TPA0103","275 kV","km",156.39383537307447]
["TPA0104","220 kV","km",3996.8616723295636]
["TPA0105","132 kV","km",0]
["TPA0106","110 kV","km",0]
["TPA0107","88 kV","km",0]
["TPA0108","66 kV","km",175.66758725193264]
["TPA0109","33 kV","km",0]
["TPA0109","22 kV","km",0]
["TPA0109","11 kV","km",0]
["TPA01","Total overhead circuit kilometres",null,6547.6447567553732]
[]
[null,"3.5.1.2 - Underground cable circuit length at each voltage"]
["TPA0201","500 kV","km",0]
["TPA0202","330 kV","km",0]
["TPA0203","275 kV","km",0]
["TPA0204","220 kV","km",11.2]
["TPA0205","132 kV","km",0]
["TPA0206","110 kV","km",0]
["TPA0207","88 kV","km",0]
["TPA0208","66 kV","km",0]
["TPA0209","33 kV","km",0]
["TPA0210","22 kV","km",0]
["TPA0211","11 kV","km",0]
["TPA02","Total underground circuit kilometres",null,11.2]
[]
[null,"3.5.1.3 - Estimated overhead network weighted average MVA capacity by voltage class"]
["TPA0301","500 kV","MVA",2575.5799500402577]
["TPA0302","330 kV","MVA",802.0807245520474]
["TPA0303","275 kV","MVA",523.9453692895853]
["TPA0304","220 kV","MVA",386.64255641906323]
["TPA0305","132 kV","MVA",0]
["TPA0306","110 kV","MVA",0]
["TPA0307","88 kV","MVA",0]
["TPA0308","66 kV","MVA",94.624241296425552]
["TPA0309","33 kV","MVA",0]
["TPA0310","22 kV","MVA",0]
["TPA0311","11 kV","MVA",0]
[]
[null,"3.5.1.4 - Estimated underground network weighted average MVA capacity by voltage class"]
["TPA0401","500 kV","MVA",0]
["TPA0402","330 kV","MVA",0]
["TPA0403","275 kV","MVA",0]
["TPA0404","220 kV","MVA",449.6403896448806]
["TPA0405","132 kV","MVA",0]
["TPA0406","110 kV","MVA",0]
["TPA0407","88 kV","MVA",0]
["TPA0408","66 kV","MVA",0]
["TPA0409","33 kV","MVA",0]
["TPA0410","22 kV","MVA",0]
["TPA0411","11 kV","MVA",0]
[]
[null,"3.5.1.5 - Installed transmission system transformer capacity"]
["TPA0501","Transmission substations (eg 500 kV to 330 kV)","MVA",10066]
["TPA0502","Terminal points to DNSP systems","MVA",14831.2]
["TPA0503","Transformer capacity for directly connected end–users owned by the TNSP","MVA",0]
["TPA0504","Transformer capacity for directly connected end–users owned by the end–user","MVA",2300.5]
["TPA0505","Interconnector capacity","MVA",1335]
["TPA0506","Other","MVA",662]
[]
[null,"3.5.1.6 - Cold spare capacity"]
["TPA06","Cold spare capacity included in Table 3.5.1.5","MVA",1968.2]

{"sheet":"3.6 Quality of services","index":10,"n_rows":60,"n_cols":4,"rows_kept":60,"cut":false,"hidden":false,"merged":[]}
[null,"REGULATORY REPORTING STATEMENT"]
[null,{"$f":"dms_TradingName","v":"AusNet (T)"}]
[null,{"$f":"CONCATENATE(\"Benchmarking RIN response \",CRY)","v":"Benchmarking RIN response 2015-16"}]
[null,"3.6 QUALITY OF SERVICE DATA"]
[]
[null,"There are THREE tables on this worksheet. Each table has been grouped (and sub-grouped) for ease of navigation. See the Instructions sheet on how to group or ungroup tables. "]
[]
[null,"3.6.1 - SERVICE COMPONENT"]
[null,null,null,"(0's)"]
[null,null,"Units",{"$f":"CONCATENATE(\"Calendar Year \",(LEFT(dms_RYE,2)&RIGHT(dms_RYE,2)-1))","v":"Calendar Year 2015"}]
[null,"Service Parameter 1 – Average circuit outage rate"]
["TQS0101","Lines outage rate - fault","%",0.19008264462809918]
["TQS0102","Number of Lines fault outages","number",23]
["TQS0103","Number of defined Lines","number",121]
["TQS0104","Transformers outage rate - fault","%",0.14285714285714285]
["TQS0105","Number of Transformer fault outages","number",18]
["TQS0106","Number of defined Transformers","number",126]
["TQS0107","Reactive plant outage rate - fault","%",0.18571428571428572]
["TQS0108","Number of Reactive plant fault outages","number",13]
["TQS0109","Number of defined Reactive plant","number",70]
["TQS0110","Lines outage rate – forced outage","%",0.15702479338842976]
["TQS0111","Number of Lines forced outages","number",19]
["TQS0112","Transformer outage rate – forced outage","%",0.1111111111111111]
["TQS0113","Number of Transformers forced outages","number",14]
["TQS0114","Reactive plant outage rate – forced outage","%",0.34285714285714286]
["TQS0115","Number of Reactive plant forced outages","number",24]
[null,"Service Parameter 2 – Loss of supply event frequency – number in ranges specified"]
["TQS0116","Number of events greater than 0.05 system minutes per annum (X)","number",2]
["TQS0117","Number of events greater than 0.1 system minutes per annum (X)","number",0]
["TQS0118","Number of events greater than 0.2 system minutes per annum (X)","number",0]
["TQS0119","Number of events greater than 0.25 system minutes per annum (X)","number",0]
["TQS0120","Number of events greater than 0.30 system minutes per annum (X)","number",0]
["TQS0121","Number of events greater than 0.5 system minutes per annum (X)","number",0]
["TQS0122","Number of events greater than 0.75 system minutes per annum (X)","number",0]
["TQS0123","Number of events greater than 1.0 system minutes per annum (X)","number",0]
["TQS0124","Number of events greater than 0.05 system minutes per annum (Y)","number",0]
["TQS0125","Number of events greater than 0.1 system minutes per annum (Y)","number",0]
["TQS0126","Number of events greater than 0.2 system minutes per annum (Y)","number",0]
["TQS0127","Number of events greater than 0.25 system minutes per annum (Y)","number",0]
["TQS0128","Number of events greater than 0.30 system minutes per annum (Y)","number",1]
["TQS0129","Number of events greater than 0.5 system minutes per annum (Y)","number",0]
["TQS0130","Number of events greater than 0.75 system minutes per annum (Y)","number",0]
["TQS0131","Number of events greater than 1.0 system minutes per annum (Y)","number",0]
[null,"Service Parameter 3 – Average outage duration"]
["TQS0118","Average outage duration ","minutes",97.5]
[null,"Service Parameter 4 – Proper operation of equipment – number of failure events"]
["TQS0119","Failure of protection system","number",30]
["TQS0120","Material failure of Supervisory Control and Data Acquisition (SCADA) system","number",0]
["TQS0121","Incorrect operational isolation of primary or secondary equipment","number",5]
[]
[]
[null,"3.6.2 - MARKET IMPACT COMPONENT"]
[null,null,null,"(0's)"]
[null,null,null,{"$f":"CONCATENATE(\"Calendar Year \",(LEFT(dms_RYE,2)&RIGHT(dms_RYE,2)-1))","v":"Calendar Year 2015"}]
["TQS02","Market Impact Parameter","Number of dispatch intervals",1898.5]
[]
[null,"3.6.3 - SYSTEM LOSSES"]
[null,null,null,"(0's)"]
[null,null,null,{"$f":"CONCATENATE(\"Calendar Year \",(LEFT(dms_RYE,2)&RIGHT(dms_RYE,2)-1))","v":"Calendar Year 2015"}]
["TQS03","System losses","%",2.5000000000000001E-2]

{"sheet":"3.7 Operating environment","index":11,"n_rows":26,"n_cols":4,"rows_kept":26,"cut":false,"hidden":false,"merged":[[6,1,6,3],[19,1,19,3]]}
[null,"REGULATORY REPORTING STATEMENT"]
[null,{"$f":"dms_TradingName","v":"AusNet (T)"}]
[null,{"$f":"CONCATENATE(\"Benchmarking RIN response \",CRY)","v":"Benchmarking RIN response 2015-16"}]
[null,"3.7 OPERATING ENVIRONMENT FACTORS"]
[]
[]
["TEF01","3.7.1 - TERRAIN FACTORS"]
[null,null,null,"(0's)"]
[null,null,"Unit",{"$f":"CRY","v":"2015-16"}]
["TEF0101","Total number of vegetation maintenance spans","Number of spans",1651]
["TEF0102","Average vegetation maintenance span cycle","Years",2.4649999999999999]
["TEF0103","Average number of trees per vegetation maintenance span","Trees",14.886934673366834]
["TEF0104","Average number of defects per vegetation maintenance span","Defects",0.20956995760145367]
["TEF0105","Tropical proportion","Number of spans",0]
["TEF0106","Standard vehicle access","km",4507.83]
["TEF0107","Altitude","km",212.45]
["TEF0108","Bushfire risk","Number of spans",1278]
[]
[]
["TEF02","3.7.2 - NETWORK CHARACTERISTICS"]
[null,null,null,"(0's)"]
[null,null,null,{"$f":"CRY","v":"2015-16"}]
["TEF0201","Route line length","km",5019.8999999999996]
["TEF0202","Variability of dispatch","%"]
["TEF0203","Concentrated load distance","km"]
["TEF0204","Total number of spans","number",13013]

{"sheet":"Unlocked worksheet","index":12,"n_rows":0,"n_cols":0,"rows_kept":0,"cut":false,"hidden":true,"merged":[]}

{"sheet":"NSP Amendments","index":13,"n_rows":2,"n_cols":3,"rows_kept":2,"cut":false,"hidden":true,"merged":[[0,1,0,2]]}
[null,{"$f":"CONCATENATE(dms_TradingName,\" data amendments\")","v":"AusNet (T) data amendments"}]
[null,"Amended Table","Comments"]